Cogmind - Beta 13 @@@ ROGUE MODE // 2024.06.17 @ 17:43:04 // Winter2019/RPGLIKE Player: AbsoluteZero Result: Escaped! Performance ------------- Evolutions (9) 4500 Regions Visited (29) 5800 Robots Destroyed (260) 1300 Value Destroyed (12043) 12043 Prototype IDs (54) 1080 Alien Tech Used (3) 600 Bonus (9219) 9219 TOTAL SCORE: 34542 Bonus ------- High Alert Combat Kills 1848 Follower Combat Kills 1438 Awakened Behemoth Slayer 1000 Network Hubs Disabled 200 Met Zhirov 300 Met Warlord at Base 500 MAIN.C Attacked Warlord 500 Warlord Defense Kills 154 Scanned by Researcher 500 Win 3000 Friendly Fire -221 Cogmind --------- Core Integrity 608/1150 Matter 300/300 Energy 397/400 System Corruption 1% Temperature Cool (6) Movement Flying (20) Location To Epsilon Eridani Parts ------- > --- POWER (2) -------- Micro Antimatter Reactor Micro Antimatter Reactor > --- PROPULSION (6) --- Q-thruster Q-thruster Electron Diverter Electron Diverter Improved Diametric Drive Improved Diametric Drive > --- UTILITY (11) ----- Advanced Sensor Array Advanced Signal Interpreter Advanced Terrain Scanner Advanced Melee Analysis Suite Nanoactuators Advanced Actuator Array Improved Force Booster Improved Reaction Control System Experimental Cloaking Device Graphene Brace Advanced Shield Generator > --- WEAPON (4) ------- Sigix Broadsword Sigix Broadsword > --- INVENTORY (3) ---- Gravity Neutralizer Advanced Component Analysis Suite Vortex Lance (40) Peak State ------------ > --- POWER ------------ Micro Antimatter Reactor Micro Antimatter Reactor > --- PROPULSION ------- Q-thruster Q-thruster Electron Diverter Electron Diverter Improved Diametric Drive Improved Diametric Drive > --- UTILITY ---------- Advanced Sensor Array Advanced Signal Interpreter Advanced Terrain Scanner Advanced Melee Analysis Suite Nanoactuators Advanced Actuator Array Improved Reaction Control System Experimental Cloaking Device Graphene Brace Advanced Shield Generator Advanced Component Analysis Suite > --- WEAPON ----------- Sigix Broadsword Sigix Broadsword > --- INVENTORY -------- Improved Force Booster Transdimensional Reconstructor Vortex Lance [Rating: 197] Favorites ----------- Power Micro Fission Core Engine Light Ion Engine Power Core Micro Fission Core Reactor Micro Antimatter Reactor Propulsion Cooled Airjet Wheel Compact Wheel Hover Unit Cooled Airjet Flight Unit Electron Diverter Utility Improved Reaction Control System Device Improved Reaction Control System Processor Improved Signal Interpreter Hackware Hacking Suite Protection Hardened Medium Armor Plating Weapon Makeshift Spear Energy Gun EM Pulse Gun Energy Cannon Heavy Phase Cannon Ballistic Gun KE Penetrator Launcher Grenade Launcher Special Weapon Molecular Deconstructor Impact Weapon Heavy Hammer Slashing Weapon Sigix Broadsword Piercing Weapon Makeshift Spear Build | -11 -10 -10 -9 -9 -9 -7 -7 -7 -7 -6 -6 -6 -6 -6 -6 -5 -5 -5 -5 -4 -4 -4 -4 -4 -3 -3 -3 -2 -1 ------- Run | Yrd Mat Min Mat Sto Rec Fac Low Low Zio Pro Fac Ext Cet Arc Hub Fac Upp Upp Zhi Pro Fac Upp Upp War Pro Res Qua Res Acc Slots Evolved 19 | 3 . . 1 2 1 . 1 . . 2 1 1 . 1 . 1 . . . 1 1 . . . 1 1 . 1 . Power 1 | . . . . . . . . . . . . . . . . . . . . 1 . . . . . . . . . Propulsion 5 | 1 . . . 1 . . . . . . . 1 . . . . . . . . 1 . . . 1 . . . . Utility 10 | 1 . . 1 1 1 . 1 . . 1 1 . . 1 . 1 . . . . . . . . . . . 1 . Weapon 3 | 1 . . . . . . . . . 1 . . . . . . . . . . . . . . . 1 . . . Parts Attached 165 | 5 8 2 5 5 . 18 6 1 10 7 6 1 . 1 6 21 1 1 5 1 21 . 2 10 . 5 10 3 4 Power 15 | 1 . 1 . . . 2 . . . . 1 . . . 2 2 . . 2 1 . . . . . 1 2 . . Engine 3 | 1 . 1 . . . 1 . . . . . . . . . . . . . . . . . . . . . . . Core 8 | . . . . . . 1 . . . . 1 . . . 2 2 . . 1 1 . . . . . . . . . Reactor 4 | . . . . . . . . . . . . . . . . . . . 1 . . . . . . 1 2 . . Propulsion 46 | 2 2 1 1 3 . 8 . . . 2 2 1 . . 1 9 . . 2 . 6 . . 3 . 1 2 . . Treads . | . . . . . . . . . . . . . . . . . . . . . . . . . . . . . . Leg . | . . . . . . . . . . . . . . . . . . . . . . . . . . . . . . Wheel 2 | 2 . . . . . . . . . . . . . . . . . . . . . . . . . . . . . Hover 13 | . 1 . . . . 8 . . . 2 1 . . . 1 . . . . . . . . . . . . . . Flight 31 | . 1 1 1 3 . . . . . . 1 1 . . . 9 . . 2 . 6 . . 3 . 1 2 . . Utility 60 | . 3 . 2 2 . 4 2 1 8 1 3 . . 1 1 10 1 . 1 . 4 . 1 5 . 1 3 2 4 Device 38 | . 1 . . . . 2 1 1 3 1 2 . . . 1 7 . . 1 . 3 . 1 5 . . 3 2 4 Storage . | . . . . . . . . . . . . . . . . . . . . . . . . . . . . . . Processor 11 | . 1 . . . . 1 . . 5 . 1 . . 1 . . . . . . 1 . . . . 1 . . . Hackware 1 | . 1 . . . . . . . . . . . . . . . . . . . . . . . . . . . . Protection 10 | . . . 2 2 . 1 1 . . . . . . . . 3 1 . . . . . . . . . . . . Artifact . | . . . . . . . . . . . . . . . . . . . . . . . . . . . . . . Weapon 44 | 2 3 . 2 . . 4 4 . 2 4 . . . . 2 . . 1 . . 11 . 1 2 . 2 3 1 . Energy Gun 2 | 2 . . . . . . . . . . . . . . . . . . . . . . . . . . . . . Energy Cannon 2 | . . . . . . . . . . . . . . . . . . . . . 2 . . . . . . . . Ballistic Gun 1 | . . . . . . . . . . . . . . . 1 . . . . . . . . . . . . . . Ballistic Cannon . | . . . . . . . . . . . . . . . . . . . . . . . . . . . . . . Launcher 2 | . . . . . . 1 1 . . . . . . . . . . . . . . . . . . . . . . Special Weapon 1 | . . . . . . . . . . 1 . . . . . . . . . . . . . . . . . . . Impact Weapon 7 | . 1 . 2 . . 3 1 . . . . . . . . . . . . . . . . . . . . . . Slashing Weapon 9 | . 2 . . . . . 2 . . . . . . . . . . . . . 1 . . . . . 3 1 . Piercing Weapon 20 | . . . . . . . . . 2 3 . . . . 1 . . 1 . . 8 . 1 2 . 2 . . . Special Melee Weapon . | . . . . . . . . . . . . . . . . . . . . . . . . . . . . . . Unidentified Prototypes 24 | . . . . 1 . 3 . . 4 1 1 . . . . 1 . . 3 . 3 . . 5 . . 2 . . Parts Lost 1 | . . . . . . . . . . . . . . . 1 . . . . . . . . . . . . . . Power . | . . . . . . . . . . . . . . . . . . . . . . . . . . . . . . Propulsion . | . . . . . . . . . . . . . . . . . . . . . . . . . . . . . . Utility 1 | . . . . . . . . . . . . . . . 1 . . . . . . . . . . . . . . Weapon . | . . . . . . . . . . . . . . . . . . . . . . . . . . . . . . Highest Loss Streak 1 | . . . . . . . . . . . . . . . 1 . . . . . . . . . . . . . . To Critical Strikes . | . . . . . . . . . . . . . . . . . . . . . . . . . . . . . . Average Slot Usage (%) 96 | . 92 99 96 98 90 99 100 100 98 100 100 97 100 100 100 94 94 94 94 94 92 95 95 96 96 96 98 89 91 Engine 2 | . 14 13 12 11 9 5 . . . . . . . . . . . . . . . . . . . . . . . Core 5 | . . . . . . 3 8 8 8 7 7 6 6 5 5 5 5 5 5 6 10 10 10 10 9 6 2 . . Hover 9 | . 12 4 . . . 24 25 25 25 21 20 18 18 17 21 3 . . . . . . . . . . . . . Flight 13 | . 10 23 25 28 27 2 . . . . . 1 6 5 1 13 16 16 16 15 16 20 20 21 23 24 27 26 26 Device 30 | . 12 14 12 11 9 26 31 33 31 32 29 31 31 29 29 37 38 38 38 37 35 35 40 40 38 38 35 37 39 Processor 10 | . 11 14 12 11 9 9 8 8 8 7 12 12 12 15 17 11 11 11 11 10 10 10 10 10 9 9 9 8 8 Protection 5 | . . . 8 12 18 9 8 8 8 7 7 6 6 5 5 4 5 5 5 5 5 5 . . . . . . . Impact Weapon 4 | . 5 14 14 22 18 18 9 . . . . . . . . . . . . . . . . . . . . . . Slashing Weapon 2 | . 10 14 9 . . . 6 16 3 . . . . . . . . . . . . . . . . . 1 7 8 Piercing Weapon 10 | . . . . . . . . . 12 21 21 18 18 17 16 16 16 16 16 15 13 15 15 15 14 14 15 . . Naked Turns . | . . . . . . . . . . . . . . . . . . . . . . . . . . . . . . Heaviest Build 63 | 9 10 10 15 16 14 31 30 30 27 32 33 33 32 32 35 36 36 36 36 41 45 43 43 40 40 51 55 56 63 Greatest Support 66 | 37 37 13 18 23 23 46 34 34 34 46 46 46 34 34 56 44 41 41 41 41 48 45 45 45 44 55 61 61 66 Greatest Overweight (x) 1 | . . . . . . 1 . . . . 1 . . . . . . . 1 . 1 . . 1 . . . . . Average Overweight (x) . | . . . . . . . . . . . . . . . . . . . . . . . . . . . . . . Largest Inventory Capacity 3 | . . . 2 2 2 2 2 2 2 2 2 2 2 2 2 2 2 2 2 2 3 3 3 3 3 3 3 3 3 Average Capacity 2 | . . . 1 2 2 2 2 2 2 2 2 2 2 2 2 2 2 2 2 2 2 3 3 3 3 3 3 3 3 Most Carried 3 | . . . 1 2 2 2 2 2 2 2 2 2 2 2 2 2 2 2 2 2 3 2 3 3 3 3 3 3 3 Average Carried 1 | . . . . . 2 1 1 1 1 1 1 1 2 1 2 1 2 2 1 1 2 2 2 3 3 3 2 2 2 Final Capacity 3 | . . . 2 2 2 2 2 2 2 2 2 2 2 2 2 2 2 2 2 2 3 3 3 3 3 3 3 3 3 Final Carried 3 | . . . 1 2 2 2 2 2 2 1 1 2 2 2 2 2 2 2 2 2 2 2 3 3 3 3 3 3 3 Class Distribution -------------------- 53% | Hacker-Scout 23% | Hacker-Gladiator 18% | Hacker-Ninja Dominant Class ---------------- Hacker-Mutant | -10/Materials Hacker-Gladiator | -10/Mines Hacker-Gladiator | -9/Materials Hacker-Gladiator | -9/Storage Hacker-Gladiator | -9/Recycling Hacker-Gladiator | -7/Factory Hacker-Scout | -7/Lower Caves Hacker-Scout | -7/Lower Caves Hacker-Scout | -7/Zion Hacker-Scout | -6/Proximity Caves Hacker-Scout | -6/Factory Hacker-Scout | -6/Extension Hacker-Scout | -6/Cetus Hacker-Scout | -6/Archives Hacker-Gladiator | -6/Hub_04(d) Hacker-Scout | -5/Factory Hacker-Scout | -5/Upper Caves Hacker-Scout | -5/Upper Caves Hacker-Scout | -5/Zhirov Hacker-Scout | -4/Proximity Caves Hacker-Scout | -4/Factory Hacker-Scout | -4/Upper Caves Hacker-Ninja | -4/Upper Caves Hacker-Ninja | -4/Warlord Hacker-Ninja | -3/Proximity Caves Hacker-Ninja | -3/Research Hacker-Ninja | -3/Quarantine Hacker-Ninja | -2/Research Hacker-Ninja | -1/Access Resources | -11 -10 -10 -9 -9 -9 -7 -7 -7 -7 -6 -6 -6 -6 -6 -6 -5 -5 -5 -5 -4 -4 -4 -4 -4 -3 -3 -3 -2 -1 ----------- Run | Yrd Mat Min Mat Sto Rec Fac Low Low Zio Pro Fac Ext Cet Arc Hub Fac Upp Upp Zhi Pro Fac Upp Upp War Pro Res Qua Res Acc Matter Collected 2070 | 250 80 20 50 50 . 201 110 10 28 150 62 10 . 20 84 210 30 15 60 60 210 . 25 100 . 50 45 100 40 Remotely . | . . . . . . . . . . . . . . . . . . . . . . . . . . . . . . Salvage Created 11556 | . 118 39 562 737 . 399 219 95 . 551 183 406 107 39 452 1222 . 184 205 845 1014 242 181 85 . 1182 1068 387 1034 Parts 632 | . 6 12 21 18 . 9 7 1 . 36 17 52 8 8 22 102 6 7 . 33 75 3 7 3 . 68 54 14 43 Haulers Intercepted 5 | . 1 . . 2 . 1 . . . . . . . . . 1 . . . . . . . . . . . . . Recyclers Shooed . | . . . . . . . . . . . . . . . . . . . . . . . . . . . . . . Parts Field Recycled . | . . . . . . . . . . . . . . . . . . . . . . . . . . . . . . Retrieved Matter . | . . . . . . . . . . . . . . . . . . . . . . . . . . . . . . Parts Self-Destructed 100 | . . . . . . . 5 . . 34 . . . . . . 5 8 . 37 . 3 7 . 1 . . . . Prevented 5 | . . . . . . . . . . 1 . . . . . . . 2 . . . . . . 2 . . . . Kills | -11 -10 -10 -9 -9 -9 -7 -7 -7 -7 -6 -6 -6 -6 -6 -6 -5 -5 -5 -5 -4 -4 -4 -4 -4 -3 -3 -3 -2 -1 ------- Run | Yrd Mat Min Mat Sto Rec Fac Low Low Zio Pro Fac Ext Cet Arc Hub Fac Upp Upp Zhi Pro Fac Upp Upp War Pro Res Qua Res Acc Combat Hostiles Destroyed 199 | . 2 5 13 14 1 4 6 . . 12 5 14 2 1 3 30 1 4 . 11 21 2 3 1 1 18 9 3 13 Melee 177 | . 1 5 8 7 . 3 2 . . 12 5 13 2 1 3 30 . 4 . 11 20 2 3 1 1 18 9 3 13 AOE 3 | . . . . . . . 3 . . . . . . . . . . . . . . . . . . . . . . Classes Destroyed 18 | . 3 1 4 1 . 1 1 . . 3 . 3 . . . . . . . . . . . . . . 1 . . Worker 5 | . . . . 1 . . . . . . . . . . 4 . . . . . . . . . . . . . . Builder 2 | . . . . . . . . . . . . 2 . . . . . . . . . . . . . . . . . Hauler 5 | . 1 . . 2 . 1 . . . . . . . . . 1 . . . . . . . . . . . . . Recycler 3 | . . . 1 . . . . . . . . . . . 1 . . . . . . . . . . . . 1 . Operator 9 | . 1 . . 2 . 1 . . . . 1 . . 1 . . . . . . 1 . . . . 1 1 . . Watcher 33 | . . . 2 1 . 2 . . . . . 1 1 . 2 7 . . . . 3 . . . . 5 3 2 4 Swarmer 62 | . . 3 4 1 . 1 4 . . 3 . 2 . . . 17 . . . . 10 . . . . 11 . . 6 Grunt 53 | . 2 2 7 5 . . . . . 2 2 9 . . 1 . . 4 . 4 . . 2 . . 3 8 2 . Brawler 1 | . . . . . . . . . . 1 . . . . . . . . . . . . . . . . . . . Duelist 3 | . . . 1 . . . 1 . . . . . . . . . . . . . . . 1 . . . . . . Protector 2 | . . . . . . . . . . . . 1 . . . 1 . . . . . . . . . . . . . Researcher 3 | . . . . . . . . . . . . . . . . . . . . . . . . . . . 3 . . Sentry 33 | . . . 1 8 1 2 1 . . . 2 1 . 1 . 4 . . . 2 5 . . . 1 2 . 1 1 Specialist 6 | . . . . . . . . . . 3 . . . . 1 1 . . . . . . . 1 . . . . . Hunter 17 | . . . . . . 1 . . . 2 1 . . . . 2 . . . 3 2 2 . . . . . . 4 Programmer 17 | . . . . . . . . . . 1 . . . . 1 5 . . . 2 3 . . . . 2 1 . 2 Behemoth 3 | . . . . . . . . . . . . 1 . . . . 1 . . . 1 . . . . . . . . Cetus Guard 2 | . . . . . . . . . . . . . 2 . . . . . . . . . . . . . . . . Packrat 1 | . . . . . . . . . . . . . . . . . . . . . . 1 . . . . . . . Samaritan 2 | . . . . . . . 2 . . . . . . . . . . . . . . . . . . . . . . Thug 1 | . . . . . . . . . . . . . . . 1 . . . . . . . . . . . . . . Best Kill Streak 10 | . 3 2 5 4 1 2 4 . . 5 3 4 3 1 5 7 1 3 . 3 7 2 3 1 1 10 7 3 10 Combat Bots Only 9 | . 2 2 5 3 1 1 4 . . 5 3 4 2 1 1 6 1 3 . 3 7 2 3 1 1 9 5 2 8 Max Kills in Single Turn 4 | . 1 1 1 1 1 1 1 . . 1 1 1 1 1 4 2 1 1 . 1 1 1 1 1 1 2 1 2 2 Gunslinging . | . . . . . . . . . . . . . . . . . . . . . . . . . . . . . . Exploded 1 | . . . . . . . 1 . . . . . . . . . . . . . . . . . . . . . . Melee 2 | . 1 1 1 1 . 1 1 . . 1 1 1 1 1 1 2 . 1 . 1 1 1 1 1 1 2 1 2 2 Uniques/NPCs Destroyed . | . . . . . . . . . . . . . . . . . . . . . . . . . . . . . . Combat | -11 -10 -10 -9 -9 -9 -7 -7 -7 -7 -6 -6 -6 -6 -6 -6 -5 -5 -5 -5 -4 -4 -4 -4 -4 -3 -3 -3 -2 -1 -------- Run | Yrd Mat Min Mat Sto Rec Fac Low Low Zio Pro Fac Ext Cet Arc Hub Fac Upp Upp Zhi Pro Fac Upp Upp War Pro Res Qua Res Acc Hostile Shots Fired 1158 | . 9 39 55 61 2 71 85 . . 54 43 180 10 4 16 154 3 20 . 40 101 26 10 9 2 52 38 4 70 Missed 512 | . 3 12 15 20 . 38 35 . . 12 24 98 5 2 8 68 1 9 . 27 43 10 5 4 1 25 14 1 32 Damage Taken 8209 | . 66 245 498 512 28 303 485 . . 541 274 885 135 90 342 1422 43 139 . 115 693 150 59 30 13 319 90 39 693 Core 5894 | . 56 204 383 352 20 225 344 . . 379 189 583 97 58 238 1004 34 93 . 79 473 97 45 20 10 250 85 30 546 Absorbed by Shields 1367 | . . . . . . . . . . . . 106 28 . . 455 15 51 . 42 260 59 22 13 5 118 33 14 146 Redirected to Core 4633 | . 34 121 232 241 5 169 307 . . 271 169 438 97 40 181 856 34 54 . 59 386 74 45 20 10 227 16 30 517 Redirected to Shielding 10 | . . . . 10 . . . . . . . . . . . . . . . . . . . . . . . . . Ignored by Resistances 1370 | . . . 35 61 3 41 48 . . 56 38 144 18 12 23 196 8 25 . 39 222 55 24 14 5 105 31 15 152 Regen/Repaired (Parts) 62 | . . . . 19 . . . . . . . . . . . . . . . . . . . . . . 2 6 35 Core Remaining (%) 84 | 100 . 100 . . 100 . . . . 67 . . . . 67 . . . . 98 . . . . 100 . 81 78 52 Volleys Fired 14 | . 1 . . . . . 5 . . . . . . . 5 . . . . . 3 . . . . . . . . Largest 2 | . 2 . . . . . 1 . . . . . . . 1 . . . . . 1 . . . . . . . . Hottest 90 | . 80 . . . . . 30 . . . . . . . 33 . . . . . 90 . . . . . . . . Shots Fired 16 | . 2 . . . . . 5 . . . . . . . 6 . . . . . 3 . . . . . . . . Gun 8 | . 2 . . . . . . . . . . . . . 6 . . . . . . . . . . . . . . Cannon 3 | . . . . . . . . . . . . . . . . . . . . . 3 . . . . . . . . Launcher 5 | . . . . . . . 5 . . . . . . . . . . . . . . . . . . . . . . Special . | . . . . . . . . . . . . . . . . . . . . . . . . . . . . . . Kinetic 6 | . . . . . . . . . . . . . . . 6 . . . . . . . . . . . . . . Thermal 3 | . . . . . . . . . . . . . . . . . . . . . 3 . . . . . . . . Explosive 5 | . . . . . . . 5 . . . . . . . . . . . . . . . . . . . . . . Electromagnetic 2 | . 2 . . . . . . . . . . . . . . . . . . . . . . . . . . . . Robot Hit Streak 5 | . 1 . . . . . 4 . . . . . . . 5 . . . . . . . . . . . . . . Robot Miss Streak . | . . . . . . . . . . . . . . . . . . . . . . . . . . . . . . Penetration Max . | . . . . . . . . . . . . . . . . . . . . . . . . . . . . . . Secondary Targets . | . . . . . . . . . . . . . . . . . . . . . . . . . . . . . . Shots Hit Robots 659 | . 9 11 40 57 3 19 20 1 . 30 15 41 14 2 20 107 1 13 6 32 63 10 13 5 1 52 35 12 27 Core Hits 288 | . 3 6 9 10 . 3 9 1 . 18 9 17 5 2 17 50 . 7 4 17 29 4 6 2 1 27 16 5 11 Critical Kills 7 | . . . 4 1 . 1 1 . . . . . . . . . . . . . . . . . . . . . . Critical Parts Destroyed 21 | . . . 5 11 1 3 1 . . . . . . . . . . . . . . . . . . . . . . Critical Strikes 109 | . . . 9 12 2 4 4 . . 3 2 6 5 1 3 24 . 1 1 7 9 . 2 1 1 7 4 1 . Smash 29 | . . . 9 12 2 4 2 . . . . . . . . . . . . . . . . . . . . . . Sever 3 | . . . . . . . 2 . . . . . . . . . . . . . . . . . . . . 1 . Impale 77 | . . . . . . . . . . 3 2 6 5 1 3 24 . 1 1 7 9 . 2 1 1 7 4 . . Melee Attacks 937 | . 16 24 50 66 3 26 18 2 . 42 30 55 14 4 23 158 2 16 8 38 95 14 13 8 2 81 69 17 43 Impact 169 | . 8 20 39 66 3 26 7 . . . . . . . . . . . . . . . . . . . . . . Slashing 113 | . 8 4 11 . . . 11 2 . . . . . . . . . . . . . . . . . . 17 17 43 Piercing 655 | . . . . . . . . . . 42 30 55 14 4 23 158 2 16 8 38 95 14 13 8 2 81 52 . . Sneak Attacks 38 | . 1 . 2 6 . 4 2 . . . . 6 . 1 1 4 . . . 2 1 3 . 1 . 1 1 2 . Combat Hostiles 15 | . . . . 1 . 2 . . . . . 3 . . . 1 . . . 2 . 2 . 1 . 1 1 1 . Follow-up Attacks 177 | . 3 2 9 8 1 3 1 . . 14 7 12 6 . 5 29 . 1 3 12 14 3 6 2 . 18 11 3 4 Damage Inflicted 33566 | . 218 278 1144 2325 102 1215 1146 63 . 969 580 1881 548 198 1098 4348 . 530 500 1423 3138 671 666 306 70 3219 2485 1386 3059 Guns 18 | . 18 . . . . . . . . . . . . . . . . . . . . . . . . . . . . Cannons . | . . . . . . . . . . . . . . . . . . . . . . . . . . . . . . Explosions 888 | . . . . . . . 351 . . . . . . . 537 . . . . . . . . . . . . . . Melee 32660 | . 200 278 1144 2325 102 1215 795 63 . 969 580 1881 548 198 561 4348 . 530 500 1423 3138 671 666 306 70 3219 2485 1386 3059 Ramming . | . . . . . . . . . . . . . . . . . . . . . . . . . . . . . . Kinetic . | . . . . . . . . . . . . . . . . . . . . . . . . . . . . . . Thermal . | . . . . . . . . . . . . . . . . . . . . . . . . . . . . . . Explosive 351 | . . . . . . . 351 . . . . . . . . . . . . . . . . . . . . . . Electromagnetic 555 | . 18 . . . . . . . . . . . . . 537 . . . . . . . . . . . . . . Impact 5434 | . 143 234 984 2325 102 1215 431 . . . . . . . . . . . . . . . . . . . . . . Slashing 5968 | . 57 44 160 . . . 364 63 . . . . . . . . . . . . . . . . . . 835 1386 3059 Piercing 21258 | . . . . . . . . . . 969 580 1881 548 198 561 4348 . 530 500 1423 3138 671 666 306 70 3219 1650 . . Highest Corruption 8 | . . . . . . 1 1 1 1 2 . . 1 1 1 8 8 8 8 8 5 5 5 5 . 1 1 . 1 Average Corruption 3 | . . . . . . 1 1 1 1 1 . . 1 1 1 6 8 8 8 8 5 5 5 5 . 1 1 . 1 Corruption Purged . | . . . . . . . . . . . . . . . . . . . . . . . . . . . . . . Corruption Blocked 3 | . . . . . . . . . . . . . . . . . . . . . . . . . . . . 3 . Effects 79 | . . . . . . 6 2 1 . 4 . . 1 . 3 12 4 10 3 15 3 1 6 . . 2 5 . 1 Message Errors 18 | . . . . . . . . 1 . 1 . . . . . 5 1 2 1 2 2 1 1 . . . 1 . . Matter Fused 17 | . . . . . . 3 . . . 1 . . 1 . . 3 . 1 . 6 . . 1 . . . 1 . . Heat Flow Errors 10 | . . . . . . . . . . . . . . . . 1 1 3 1 2 . . 1 . . 1 . . . Energy Discharges 11 | . . . . . . 2 . . . . . . . . 1 1 1 1 . 3 . . 1 . . . 1 . . Parts Rejected 1 | . . . . . . . . . . . . . . . . . . 1 . . . . . . . . . . . Parts Fused 1 | . . . . . . . . . . . . . . . . . . . . . . . 1 . . . . . . Data Loss (minor) 11 | . . . . . . 1 1 . . 1 . . . . . 2 1 2 1 1 . . 1 . . . . . . Data Loss (major) 6 | . . . . . . . 1 . . . . . . . 1 . . . . . . . . . . 1 2 . 1 Misfires 1 | . . . . . . . . . . . . . . . 1 . . . . . . . . . . . . . . Alerts 3 | . . . . . . . . . . 1 . . . . . . . . . 1 1 . . . . . . . . Overload Shots . | . . . . . . . . . . . . . . . . . . . . . . . . . . . . . . Overflow Damage 4629 | . 6 21 232 673 36 284 264 . . . 16 148 30 . 55 372 . . 262 38 331 119 64 175 . 202 202 321 778 Projectiles . | . . . . . . . . . . . . . . . . . . . . . . . . . . . . . . Explosions 47 | . . . . . . . 3 . . . . . . . 44 . . . . . . . . . . . . . . Melee 4582 | . 6 21 232 673 36 284 261 . . . 16 148 30 . 11 372 . . 262 38 331 119 64 175 . 202 202 321 778 Knockbacks 16 | . . . 7 5 . 2 2 . . . . . . . . . . . . . . . . . . . . . . Impact 14 | . . . 5 5 . 2 2 . . . . . . . . . . . . . . . . . . . . . . Kinetic . | . . . . . . . . . . . . . . . . . . . . . . . . . . . . . . Secondary 2 | . . . 2 . . . . . . . . . . . . . . . . . . . . . . . . . . Self-Inflicted Damage 104 | . . . . . . . 9 . . . . . . . 95 . . . . . . . . . . . . . . Shots 2 | . . . . . . . 1 . . . . . . . 1 . . . . . . . . . . . . . . Rammed . | . . . . . . . . . . . . . . . . . . . . . . . . . . . . . . Targets Rammed . | . . . . . . . . . . . . . . . . . . . . . . . . . . . . . . Kicked . | . . . . . . . . . . . . . . . . . . . . . . . . . . . . . . Crushed . | . . . . . . . . . . . . . . . . . . . . . . . . . . . . . . Highest Temperature 375 | . 18 . 18 42 4 2 20 . 375 19 2 136 15 6 37 199 116 251 191 253 80 24 133 45 . 102 . . . Average Temperature 69 | . 12 . 12 15 4 1 9 . 193 6 2 60 4 4 15 76 66 108 108 116 21 10 79 22 . 24 . . . Received Heat Transfer 1685 | . 36 42 189 246 9 84 24 . . 72 57 459 26 . 27 111 9 60 . . 101 . 33 20 . 59 15 . 6 Effects 2 | . . . . . . . . . . . . . . . . . . 2 . . . . . . . . . . . Interference 2 | . . . . . . . . . . . . . . . . . . 2 . . . . . . . . . . . Siege Activations . | . . . . . . . . . . . . . . . . . . . . . . . . . . . . . . Robots Corrupted 1 | . . . . . . . . . . . . . . . 1 . . . . . . . . . . . . . . Combat Hostiles . | . . . . . . . . . . . . . . . . . . . . . . . . . . . . . . Parts Fried 36 | . 1 . 10 14 1 6 3 . . . . . . . 1 . . . . . . . . . . . . . . Impact Corruptions 66 | . 1 2 12 27 1 9 14 . . . . . . . . . . . . . . . . . . . . . . Robots Melted . | . . . . . . . . . . . . . . . . . . . . . . . . . . . . . . Combat Hostiles . | . . . . . . . . . . . . . . . . . . . . . . . . . . . . . . Parts Melted . | . . . . . . . . . . . . . . . . . . . . . . . . . . . . . . Heat Transferred . | . . . . . . . . . . . . . . . . . . . . . . . . . . . . . . Parts Sabotaged . | . . . . . . . . . . . . . . . . . . . . . . . . . . . . . . Parts Stolen . | . . . . . . . . . . . . . . . . . . . . . . . . . . . . . . Parts Stripped . | . . . . . . . . . . . . . . . . . . . . . . . . . . . . . . Power Chain Reactions . | . . . . . . . . . . . . . . . . . . . . . . . . . . . . . . Alert | -11 -10 -10 -9 -9 -9 -7 -7 -7 -7 -6 -6 -6 -6 -6 -6 -5 -5 -5 -5 -4 -4 -4 -4 -4 -3 -3 -3 -2 -1 ------- Run | Yrd Mat Min Mat Sto Rec Fac Low Low Zio Pro Fac Ext Cet Arc Hub Fac Upp Upp Zhi Pro Fac Upp Upp War Pro Res Qua Res Acc Peak Influence 1160 | . 119 181 340 760 323 387 . . . . 224 1160 824 490 854 858 . . . . 698 . . . . 837 990 726 887 Initial 649 | . . 46 70 143 257 242 . . . . 37 53 649 329 171 417 . . . . 84 . . . . 13 470 556 435 Average 415 | . 46 130 165 468 231 280 . . . . 129 644 785 455 517 543 . . . . 406 . . . . 343 707 609 639 Maximum Alert Level 4 | . . . 1 3 1 1 . . . . 1 4 3 2 3 3 . . . . 2 . . . . 3 3 3 3 Low Security (%) 23 | 100 100 100 54 12 24 3 . . . . 74 26 . . 2 . . . . . 9 . . . . 32 . . . Level 1 30 | . . . 45 22 75 96 . . . . 25 12 . 22 50 29 . . . . 33 . . . . 30 . . . Level 2 28 | . . . . 59 . . . . . . . 2 16 77 . 45 . . . . 57 . . . . 25 50 92 56 Level 3 16 | . . . . 5 . . . . . . . 42 83 . 46 25 . . . . . . . . . 11 49 7 43 Level 4 1 | . . . . . . . . . . . . 16 . . . . . . . . . . . . . . . . . Level 5 . | . . . . . . . . . . . . . . . . . . . . . . . . . . . . . . High Security . | . . . . . . . . . . . . . . . . . . . . . . . . . . . . . . Max Security . | . . . . . . . . . . . . . . . . . . . . . . . . . . . . . . Squads Dispatched 47 | . 2 . 2 4 . 5 . . . . 1 4 . . 4 7 . . . . 4 . . . . 2 6 1 5 Investigation 9 | . 1 . 2 2 . 2 . . . . . 1 . . . . . . . . . . . . . 1 . . . Extermination 5 | . . . . . . . . . . . . . . . . 2 . . . . 2 . . . . . . . 1 Reinforcement 24 | . 1 . . 2 . 2 . . . . . 1 . . 3 5 . . . . 1 . . . . . 6 1 2 Assault 7 | . . . . . . 1 . . . . . 2 . . 1 . . . . . 1 . . . . . . . 2 Garrison 2 | . . . . . . . . . . . 1 . . . . . . . . . . . . . . 1 . . . Intercept . | . . . . . . . . . . . . . . . . . . . . . . . . . . . . . . Searches Triggered . | . . . . . . . . . . . . . . . . . . . . . . . . . . . . . . Construction Impeded . | . . . . . . . . . . . . . . . . . . . . . . . . . . . . . . Haulers Reinforced 1 | . . . . . . 1 . . . . . . . . . . . . . . . . . . . . . . . Active Scanning Responses . | . . . . . . . . . . . . . . . . . . . . . . . . . . . . . . Cargo Convoy Interrupts 1 | . . . . . . . . . . . . . . . . 1 . . . . . . . . . . . . . Stealth | -11 -10 -10 -9 -9 -9 -7 -7 -7 -7 -6 -6 -6 -6 -6 -6 -5 -5 -5 -5 -4 -4 -4 -4 -4 -3 -3 -3 -2 -1 --------- Run | Yrd Mat Min Mat Sto Rec Fac Low Low Zio Pro Fac Ext Cet Arc Hub Fac Upp Upp Zhi Pro Fac Upp Upp War Pro Res Qua Res Acc Distress Signals 26 | . . . 3 5 . . . . . . . 1 1 . 2 1 . . . . . . . . . 4 3 6 . Communications Jammed . | . . . . . . . . . . . . . . . . . . . . . . . . . . . . . . Distress Signals . | . . . . . . . . . . . . . . . . . . . . . . . . . . . . . . Times Spotted 365 | . 6 5 18 26 1 9 8 . . 12 10 34 5 4 22 55 1 4 . 15 37 3 3 1 1 33 27 8 17 Peak Tracking Total 18 | . 2 3 6 6 1 4 4 . . 5 6 9 5 2 18 7 1 3 . 7 9 2 3 1 1 7 5 3 8 Tactical Retreats 33 | . 1 . 1 3 . 2 1 . . . 1 1 . . 3 5 . . . 2 3 . . . . 6 4 . . Traps | -11 -10 -10 -9 -9 -9 -7 -7 -7 -7 -6 -6 -6 -6 -6 -6 -5 -5 -5 -5 -4 -4 -4 -4 -4 -3 -3 -3 -2 -1 ------- Run | Yrd Mat Min Mat Sto Rec Fac Low Low Zio Pro Fac Ext Cet Arc Hub Fac Upp Upp Zhi Pro Fac Upp Upp War Pro Res Qua Res Acc Traps Triggered 19 | . 1 . 1 1 . 4 . . . . 1 1 . . . 6 . . . . . . . . . 1 2 1 . Indirectly . | . . . . . . . . . . . . . . . . . . . . . . . . . . . . . . Trap Hack Attempts . | . . . . . . . . . . . . . . . . . . . . . . . . . . . . . . Triggered . | . . . . . . . . . . . . . . . . . . . . . . . . . . . . . . Disarmed 5 | . . . . . . . . . . . . . . . . 5 . . . . . . . . . . . . . Reprogrammed 6 | . . . . 6 . . . . . . . . . . . . . . . . . . . . . . . . . Reused 3 | . . . . 3 . . . . . . . . . . . . . . . . . . . . . . . . . Traps Extracted . | . . . . . . . . . . . . . . . . . . . . . . . . . . . . . . Installed . | . . . . . . . . . . . . . . . . . . . . . . . . . . . . . . Triggered 14 | . . . . 3 . . . . . . . 2 . . . . . 1 . . . 2 . 5 1 . . . . Machines | -11 -10 -10 -9 -9 -9 -7 -7 -7 -7 -6 -6 -6 -6 -6 -6 -5 -5 -5 -5 -4 -4 -4 -4 -4 -3 -3 -3 -2 -1 ---------- Run | Yrd Mat Min Mat Sto Rec Fac Low Low Zio Pro Fac Ext Cet Arc Hub Fac Upp Upp Zhi Pro Fac Upp Upp War Pro Res Qua Res Acc Machines Disabled 22 | . 1 . . 2 . . . . . 1 . 2 . 2 10 . . . . . . 1 . . . . 3 . . Max in Single Turn 10 | . 1 . . 1 . . . . . 1 . 1 . . 10 . . . . . . 1 . . . . 1 . . Garrison Access 11 | . . . . . . 1 . . . . 2 . . . 1 2 . . . . 1 . . . . 1 1 1 1 Network Hub 1 | . . . . . . . . . . . . . . . 1 . . . . . . . . . . . . . . Machines Repaired . | . . . . . . . . . . . . . . . . . . . . . . . . . . . . . . Machines Dismantled . | . . . . . . . . . . . . . . . . . . . . . . . . . . . . . . Machines Sabotaged . | . . . . . . . . . . . . . . . . . . . . . . . . . . . . . . Overloaded Fab Kills . | . . . . . . . . . . . . . . . . . . . . . . . . . . . . . . Hacking | -11 -10 -10 -9 -9 -9 -7 -7 -7 -7 -6 -6 -6 -6 -6 -6 -5 -5 -5 -5 -4 -4 -4 -4 -4 -3 -3 -3 -2 -1 --------- Run | Yrd Mat Min Mat Sto Rec Fac Low Low Zio Pro Fac Ext Cet Arc Hub Fac Upp Upp Zhi Pro Fac Upp Upp War Pro Res Qua Res Acc Machines Accessed 107 | . 4 . 5 7 9 5 1 2 . . 7 8 1 1 1 14 . . 6 . 3 1 . 13 . 7 6 3 3 Terminals 60 | . 4 . 5 4 5 3 . 1 . . 4 8 1 . 1 8 . . . . 1 . . . . 6 5 2 2 Fabricators 6 | . . . . . . 2 . . . . . . . . . 3 . . . . 1 . . . . . . . . Repair Stations 1 | . . . . 1 . . . . . . . . . . . . . . . . . . . . . . . . . Recycling Units 8 | . . . . 2 4 . . . . . 1 . . . . 1 . . . . . . . . . . . . . Scanalyzers . | . . . . . . . . . . . . . . . . . . . . . . . . . . . . . . Garrison Access 9 | . . . . . . . . . . . 2 . . . . 2 . . . . 1 . . . . 1 1 1 1 Total Hacks 288 | . 12 . 17 18 26 10 1 2 . . 19 15 1 3 1 52 . . 19 . 9 1 . 19 . 27 21 7 8 Successful 154 | . 6 . 6 10 11 6 1 2 . . 9 7 1 3 . 21 . . 19 . 6 1 . 19 . 12 9 2 3 Failed 134 | . 6 . 11 8 15 4 . . . . 10 8 . . 1 31 . . . . 3 . . . . 15 12 5 5 Catastrophic 19 | . 1 . . 3 3 . . . . . . . . . 1 7 . . . . 1 . . . . 1 . 2 . Database Lockouts . | . . . . . . . . . . . . . . . . . . . . . . . . . . . . . . Manual 107 | . 10 . 10 6 16 3 . . . 1 12 2 . . 1 19 . . . . 3 . . . . 12 11 1 . Terminals 200 | . 12 . 17 14 22 7 . 1 . . 14 15 1 . 1 41 . . . . 6 . . . . 25 17 2 5 Fabricators 13 | . . . . . . 3 . . . . . . . . . 8 . . . . 2 . . . . . . . . Repair Stations 2 | . . . . 2 . . . . . . . . . . . . . . . . . . . . . . . . . Recycling Units 8 | . . . . 2 4 . . . . . 1 . . . . 1 . . . . . . . . . . . . . Scanalyzers . | . . . . . . . . . . . . . . . . . . . . . . . . . . . . . . Garrison Access 21 | . . . . . . . . . . . 4 . . . . 2 . . . . 1 . . . . 2 4 5 3 Terminal Hacks 107 | . 4 . 3 6 7 2 1 2 . . 4 7 1 3 . 11 . . 19 . 2 1 . 19 . 5 7 1 2 Record 33 | . . . . . . . . 1 . . 1 . . 3 . . . . 7 . 2 . . 17 . 1 1 . . Part Schematic 8 | . . . . 1 . 1 . . . . 2 . . . . . . . 4 . . . . . . . . . . Robot Analysis 6 | . 1 . 1 . . . . . . . . . . . . . . . 4 . . . . . . . . . . Prototype ID Bank 11 | . . . . . . . . . . . . . . . . 1 . . 4 . . . . . . 3 3 . . Open Door 15 | . . . . 1 . . 1 1 . . . 7 1 . . . . . . . . 1 . 2 . . . . 1 Level Access Points 3 | . . . . . 1 . . . . . . . . . . 1 . . . . . . . . . . . . 1 Branch Access Points 7 | . 1 . . 1 1 1 . . . . 1 . . . . 1 . . . . . . . . . . . 1 . Emergency Access Points 1 | . . . . . 1 . . . . . . . . . . . . . . . . . . . . . . . . Alert Level 6 | . . . . . 2 . . . . . . . . . . 3 . . . . . . . . . 1 . . . Unreport Threat 7 | . . . 1 1 2 . . . . . . . . . . 3 . . . . . . . . . . . . . Locate Traps 2 | . . . . . . . . . . . . . . . . 1 . . . . . . . . . . 1 . . Disarm Traps 1 | . . . . . . . . . . . . . . . . 1 . . . . . . . . . . . . . Reprogram Traps 1 | . . . . 1 . . . . . . . . . . . . . . . . . . . . . . . . . Recall Investigation 3 | . 2 . . 1 . . . . . . . . . . . . . . . . . . . . . . . . . Recall Reinforcements 1 | . . . . . . . . . . . . . . . . . . . . . . . . . . . 1 . . Hauler Manifests 2 | . . . 1 . . . . . . . . . . . . . . . . . . . . . . . 1 . . Fabricator Hacks 6 | . . . . . . 3 . . . . . . . . . 2 . . . . 1 . . . . . . . . Network Status 3 | . . . . . . 1 . . . . . . . . . 1 . . . . 1 . . . . . . . . Load Schematic 1 | . . . . . . 1 . . . . . . . . . . . . . . . . . . . . . . . Build 2 | . . . . . . 1 . . . . . . . . . 1 . . . . . . . . . . . . . Repair Station Hacks 2 | . . . . 2 . . . . . . . . . . . . . . . . . . . . . . . . . Scan Component 1 | . . . . 1 . . . . . . . . . . . . . . . . . . . . . . . . . Repair 1 | . . . . 1 . . . . . . . . . . . . . . . . . . . . . . . . . Recycling Unit Hacks 2 | . . . . . . . . . . . 1 . . . . 1 . . . . . . . . . . . . . Report Inventory 2 | . . . . . . . . . . . 1 . . . . 1 . . . . . . . . . . . . . Scanalyzer . | . . . . . . . . . . . . . . . . . . . . . . . . . . . . . . Garrison Access Hacks 9 | . . . . . . . . . . . 2 . . . . 2 . . . . 1 . . . . 1 1 1 1 Seal Access 9 | . . . . . . . . . . . 2 . . . . 2 . . . . 1 . . . . 1 1 1 1 Unauthorized Hacks 28 | . 2 . 3 2 4 1 . . . . 2 . . . . 5 . . . . 2 . . . . 6 1 . . Terminals 18 | . 2 . 3 . . 1 . . . . 2 . . . . 2 . . . . 1 . . . . 6 1 . . Track 2 | . . . 1 . . . . . . . . . . . . . . . . . . . . . . 1 . . . Assimilate 2 | . . . . . . . . . . . . . . . . . . . . . . . . . . 2 . . . Botnet 13 | . 2 . 2 . . 1 . . . . 2 . . . . 1 . . . . 1 . . . . 3 1 . . Operators 1 | . . . . . . . . . . . . . . . . 1 . . . . . . . . . . . . . Fabricators 4 | . . . . . . . . . . . . . . . . 3 . . . . 1 . . . . . . . . Fabnet 4 | . . . . . . . . . . . . . . . . 3 . . . . 1 . . . . . . . . Repair Stations . | . . . . . . . . . . . . . . . . . . . . . . . . . . . . . . Recycling Units 6 | . . . . 2 4 . . . . . . . . . . . . . . . . . . . . . . . . Tunnel 6 | . . . . 2 4 . . . . . . . . . . . . . . . . . . . . . . . . Scanalyzers . | . . . . . . . . . . . . . . . . . . . . . . . . . . . . . . Garrison Access . | . . . . . . . . . . . . . . . . . . . . . . . . . . . . . . Data Cores Recovered 5 | . 1 . . 1 . . . . . . 1 . . . . . . . . . . . . . . 1 1 . . Used . | . . . . . . . . . . . . . . . . . . . . . . . . . . . . . . Hacking Detections 53 | . 3 . 4 4 5 5 . . . . 3 4 . . 1 8 . . . . 1 . . . . 6 5 2 2 Full Trace Events 2 | . 1 . . . . 1 . . . . . . . . . . . . . . . . . . . . . . . Feedback Events . | . . . . . . . . . . . . . . . . . . . . . . . . . . . . . . Feedback Blocked . | . . . . . . . . . . . . . . . . . . . . . . . . . . . . . . Robot Schematics Acquired 1 | . . . . . . . . . . . . . . . . . . . . . . . . . . . 1 . . Robots Built . | . . . . . . . . . . . . . . . . . . . . . . . . . . . . . . Authchips . | . . . . . . . . . . . . . . . . . . . . . . . . . . . . . . Time . | . . . . . . . . . . . . . . . . . . . . . . . . . . . . . . Total Robot Build Rating . | . . . . . . . . . . . . . . . . . . . . . . . . . . . . . . Part Schematics Acquired 14 | . . . . 1 . 1 . . . . 2 . . . . . . . 4 . . . . . . . 6 . . Parts Built 2 | . . . . . . 1 . . . . . . . . . 1 . . . . . . . . . . . . . Authchips . | . . . . . . . . . . . . . . . . . . . . . . . . . . . . . . Time 153 | . . . . . . 95 . . . . . . . . . 58 . . . . . . . . . . . . . Total Part Build Rating 12 | . . . . . . 5 . . . . . . . . . 7 . . . . . . . . . . . . . Parts Repaired 1 | . . . . 1 . . . . . . . . . . . . . . . . . . . . . . . . . Time 26 | . . . . 26 . . . . . . . . . . . . . . . . . . . . . . . . . Parts Recycled . | . . . . . . . . . . . . . . . . . . . . . . . . . . . . . . Recycled Matter . | . . . . . . . . . . . . . . . . . . . . . . . . . . . . . . Retrieved Matter . | . . . . . . . . . . . . . . . . . . . . . . . . . . . . . . Retrieved Components . | . . . . . . . . . . . . . . . . . . . . . . . . . . . . . . Parts Scanalyzed . | . . . . . . . . . . . . . . . . . . . . . . . . . . . . . . Part Schematics Acquired . | . . . . . . . . . . . . . . . . . . . . . . . . . . . . . . Parts Damaged . | . . . . . . . . . . . . . . . . . . . . . . . . . . . . . . Bothacking | -11 -10 -10 -9 -9 -9 -7 -7 -7 -7 -6 -6 -6 -6 -6 -6 -5 -5 -5 -5 -4 -4 -4 -4 -4 -3 -3 -3 -2 -1 ------------ Run | Yrd Mat Min Mat Sto Rec Fac Low Low Zio Pro Fac Ext Cet Arc Hub Fac Upp Upp Zhi Pro Fac Upp Upp War Pro Res Qua Res Acc Used RIF Installer . | . . . . . . . . . . . . . . . . . . . . . . . . . . . . . . Robots Hacked 6 | . . . . . . . . . . . . . . . . . . . . 1 3 . . . . 2 . . . Non-combat . | . . . . . . . . . . . . . . . . . . . . . . . . . . . . . . Combat 6 | . . . . . . . . . . . . . . . . . . . . 1 3 . . . . 2 . . . Robot Hacks Applied . | . . . . . . . . . . . . . . . . . . . . . . . . . . . . . . Relay Couplers Released 2 | . . . . . . 1 . . . . . . . . 1 . . . . . . . . . . . . . . Machine Destruction 2 | . . . . . . 1 . . . . . . . . 1 . . . . . . . . . . . . . . Fabnet Peak Effective % 9 | . . . . . . . . . . . . . . . . . . . . 9 9 9 9 9 6 6 6 1 . Autooverrided 6 | . . . . . . . . . . . . . . . . . . . . 1 3 . . . . 2 . . . Robots Rewired 4 | . . . . 1 . . . . . . . 3 . . . . . . . . . . . . . . . . . Allies Hacked . | . . . . . . . . . . . . . . . . . . . . . . . . . . . . . . Hacks Repelled . | . . . . . . . . . . . . . . . . . . . . . . . . . . . . . . Allies | -11 -10 -10 -9 -9 -9 -7 -7 -7 -7 -6 -6 -6 -6 -6 -6 -5 -5 -5 -5 -4 -4 -4 -4 -4 -3 -3 -3 -2 -1 -------- Run | Yrd Mat Min Mat Sto Rec Fac Low Low Zio Pro Fac Ext Cet Arc Hub Fac Upp Upp Zhi Pro Fac Upp Upp War Pro Res Qua Res Acc Total Allies 36 | . . . . 10 . 2 . . . . . 16 . . . . . . . 1 3 . . . . 4 . . . Largest Group 16 | . . . . 10 . 2 . . . . . 16 13 12 9 . . . . 1 1 . . . . 1 . . . Highest-Rated Group 606 | . . . . 88 . 62 . . . . . 606 508 476 290 . . . . 56 116 . . . . 45 . . . Highest-Rated Ally 159 | . . . . 16 . 31 . . . . . 159 143 143 39 . . . . 56 116 . . . . 45 . . . Total Orders . | . . . . . . . . . . . . . . . . . . . . . . . . . . . . . . Ally Attacks 294 | . . . . 68 . 19 . . . . . 108 38 30 23 . . . . 3 3 . . . . 2 . . . Total Damage 5664 | . . . . 619 . 314 . . . . . 2778 852 419 458 . . . . 95 46 . . . . 83 . . . Kills 47 | . . . . 10 . 2 . . . . . 23 2 3 6 . . . . 1 . . . . . . . . . Allies Corrupted . | . . . . . . . . . . . . . . . . . . . . . . . . . . . . . . Allies Melted . | . . . . . . . . . . . . . . . . . . . . . . . . . . . . . . Intel | -11 -10 -10 -9 -9 -9 -7 -7 -7 -7 -6 -6 -6 -6 -6 -6 -5 -5 -5 -5 -4 -4 -4 -4 -4 -3 -3 -3 -2 -1 ------- Run | Yrd Mat Min Mat Sto Rec Fac Low Low Zio Pro Fac Ext Cet Arc Hub Fac Upp Upp Zhi Pro Fac Upp Upp War Pro Res Qua Res Acc Robot Analysis Total 6 | . 1 . 1 . . . . . . . . . . . . . . . 4 . . . . . . . . . . Derelict Logs Recovered 9 | . . 1 . . . . 1 . . 1 . . . . . . 2 1 . 2 . . 1 . . . . . . Drone Launches . | . . . . . . . . . . . . . . . . . . . . . . . . . . . . . . Drone Recoveries . | . . . . . . . . . . . . . . . . . . . . . . . . . . . . . . Exploration | -11 -10 -10 -9 -9 -9 -7 -7 -7 -7 -6 -6 -6 -6 -6 -6 -5 -5 -5 -5 -4 -4 -4 -4 -4 -3 -3 -3 -2 -1 ------------- Run | Yrd Mat Min Mat Sto Rec Fac Low Low Zio Pro Fac Ext Cet Arc Hub Fac Upp Upp Zhi Pro Fac Upp Upp War Pro Res Qua Res Acc Turns Passed 9665 | 53 399 150 322 558 129 742 322 232 292 437 506 548 118 86 163 1227 116 247 94 461 611 56 190 268 44 397 390 213 294 Spaces Moved 18746 | 52 578 195 314 653 341 1260 532 540 593 744 741 638 125 140 285 2373 338 632 204 1055 1316 172 650 885 183 1185 767 648 607 Core 13 | 13 . . . . . . . . . . . . . . . . . . . . . . . . . . . . . Treads . | . . . . . . . . . . . . . . . . . . . . . . . . . . . . . . Legs . | . . . . . . . . . . . . . . . . . . . . . . . . . . . . . . Wheels 67 | 39 28 . . . . . . . . . . . . . . . . . . . . . . . . . . . . Hover 6074 | . 287 13 . . . 1108 532 540 593 744 741 638 125 140 285 328 . . . . . . . . . . . . . Flight 12592 | . 263 182 314 653 341 152 . . . . . . . . . 2045 338 632 204 1055 1316 172 650 885 183 1185 767 648 607 Fastest Speed 17 | 50 40 37 37 34 34 30 42 42 42 30 30 30 42 42 27 30 30 30 30 30 24 24 24 19 19 17 17 20 20 Average Speed 32 | 87 53 38 37 35 34 40 42 42 42 41 41 41 42 42 37 33 30 30 30 30 28 24 24 22 19 18 19 20 20 Slowest Speed 110 | 100 100 60 37 37 34 110 42 42 42 42 106 42 42 42 42 40 30 30 104 30 102 24 24 80 19 19 22 20 20 Overloaded Moves 137 | . . . . . . 27 . . . 6 22 19 . . 63 . . . . . . . . . . . . . . Propulsion Burnouts . | . . . . . . . . . . . . . . . . . . . . . . . . . . . . . . Robots Hopped 76 | . 4 5 5 8 4 . . . . . . . . . . 6 . . . . 20 . . . . 13 8 2 1 Cave-ins Triggered . | . . . . . . . . . . . . . . . . . . . . . . . . . . . . . . Exploration Rate (%) 52 | 3 60 37 29 70 83 29 55 64 76 75 15 68 62 86 29 50 49 80 62 81 42 27 77 90 38 36 69 19 18 Regions Visited 29 Branch Regions 20 Pre-discovered Areas 12 | . . . . 2 4 . . . 1 . . . . . . . 1 . 3 1 . . . . . . . . . Known Exits Taken 27 | . 1 1 1 1 1 1 1 1 . 1 1 1 1 1 1 1 1 1 1 1 1 1 1 1 1 1 1 1 . Unknown Exits Taken 2 | 1 . . . . . . . . 1 . . . . . . . . . . . . . . . . . . . . Scrap Searched 24 | . . . . . . . 1 1 5 1 . . . . . . 2 4 . 4 . 2 4 . . . . . . Spaces Dug 75 | . 1 . . 2 . 5 . . . . 4 . . . 1 14 . . . . 14 . . 1 . 12 12 3 6 Terrain Destroyed 243 | . 1 . . 2 . 5 17 . . . 4 . . . 152 14 . . . . 14 . . 1 . 12 12 3 6 Melee 72 | . 1 . . 2 . 5 . . . . 4 . . . 1 14 . . . . 11 . . 1 . 12 12 3 6 Projectile 4 | . . . . . . . . . . . . . . . 1 . . . . . 3 . . . . . . . . AOE 167 | . . . . . . . 17 . . . . . . . 150 . . . . . . . . . . . . . . Terrain Rammed . | . . . . . . . . . . . . . . . . . . . . . . . . . . . . . . Walls Destroyed . | . . . . . . . . . . . . . . . . . . . . . . . . . . . . . . Machines Disabled . | . . . . . . . . . . . . . . . . . . . . . . . . . . . . . . Actions | -11 -10 -10 -9 -9 -9 -7 -7 -7 -7 -6 -6 -6 -6 -6 -6 -5 -5 -5 -5 -4 -4 -4 -4 -4 -3 -3 -3 -2 -1 --------- Run | Yrd Mat Min Mat Sto Rec Fac Low Low Zio Pro Fac Ext Cet Arc Hub Fac Upp Upp Zhi Pro Fac Upp Upp War Pro Res Qua Res Acc Total 21316 | 56 634 227 438 871 345 1444 601 544 636 834 908 875 176 163 316 2699 351 674 231 1172 1470 179 671 942 189 1281 938 713 738 Wait 1275 | . 29 2 84 115 . 127 33 . 19 36 121 108 44 17 3 100 . 17 . 86 42 . 4 35 1 51 81 35 85 Move 18569 | 51 570 184 305 638 332 1259 531 539 592 743 740 637 124 139 284 2360 337 631 203 1054 1275 171 649 884 182 1158 751 643 603 Hop 69 | . 3 5 3 6 4 . . . . . . . . . . 5 . . . . 20 . . . . 13 7 2 1 Pick Up 24 | . . . . 1 . 1 1 1 3 1 2 1 . 1 . 3 . . 1 2 2 . . . . . 2 1 1 Fast Attach 115 | 5 8 2 4 2 . 13 2 1 9 4 3 1 . 1 4 13 . 1 6 1 10 . 1 9 . 4 9 2 . Attach 11 | . . . . 1 . . 1 . . 2 1 . . . . 3 . . . . 2 . . . . . . 1 . Detach 9 | . . . . . . 1 . . . 1 2 . . . . 1 . . . . 2 . 1 1 . . . . . Swap 41 | . . . 1 2 . 5 3 . 1 1 2 . . . 2 5 1 . . . 9 . 1 1 . 1 2 . 4 Drop 122 | . 6 2 2 1 . 17 3 2 12 4 5 . . 1 3 17 1 . 6 2 14 . . 8 . 2 10 2 2 Fire 14 | . 1 . . . . . 5 . . . . . . . 5 . . . . . 3 . . . . . . . . Melee 604 | . 13 20 39 55 2 21 16 1 . 22 16 33 8 2 15 96 1 12 3 20 61 8 7 4 1 46 39 12 31 Ram . | . . . . . . . . . . . . . . . . . . . . . . . . . . . . . . Kick . | . . . . . . . . . . . . . . . . . . . . . . . . . . . . . . Crush . | . . . . . . . . . . . . . . . . . . . . . . . . . . . . . . Escape Stasis 131 | . . . . 11 . . . . . . . 13 . . . 55 . . . . . . . . . . 36 15 1 Rewire 17 | . . . . 4 . . . . . . . 13 . . . . . . . . . . . . . . . . . Trap . | . . . . . . . . . . . . . . . . . . . . . . . . . . . . . . Miscellaneous 315 | . 4 12 . 35 7 . 6 . . 20 16 69 . 2 . 41 11 13 12 7 30 . 8 . 5 6 1 . 10 Route ------- -11/Scrapyard -10/Materials -10/Mines -9/Materials (discovered 2 exits: *Mat / *Sto) -9/Storage (discovered 2 exits: *Mat / *Rec) -9/Recycling -7/Factory (discovered 3 exits: *Fac / *Low x2) -7/Lower Caves -7/Lower Caves (discovered 2 exits: *Fac / *Zio) -7/Zion -6/Proximity Caves -6/Factory (discovered 4 exits: Low x2 / *Ext x2) -6/Extension (discovered 3 exits: *Fac x2 / *Cet) -6/Cetus -6/Archives (discovered 3 exits: *Fac / *Hub x2) -6/Hub_04(d) -5/Factory (discovered 6 exits: *Fac x4 / *Upp x2) -5/Upper Caves -5/Upper Caves -5/Zhirov -4/Proximity Caves -4/Factory (discovered 4 exits: *Res x2 / *Upp x2) -4/Upper Caves -4/Upper Caves -4/Warlord -3/Proximity Caves -3/Research -3/Quarantine -2/Research (discovered 3 exits: *Acc / Tes x2) -1/Access To Epsilon Eridani History --------- Turn | Location | Event 1 | -11/Scrapyard | Upgraded with Propulsion slot (x1) 1 | -11/Scrapyard | Upgraded with Utility slot (x1) 1 | -11/Scrapyard | Upgraded with Weapon slot (x1) 6 | -11/Scrapyard | Discovered new exit (range 16) 54 | -11/Scrapyard | Entered Materials 59 | -10/Materials | Identified exit to Mines 453 | -10/Materials | Entered Mines 521 | -10/Mines | Found a damaged Exp. Sensor Array with a note attached 537 | -10/Mines | Learned Materials terminal intel 588 | -10/Mines | Build established: Hacker-Gladiator 598 | -10/Mines | Discovered new exit (range 8) 602 | -10/Mines | Assembled infested the area 603 | -10/Mines | Identified exit to Materials 603 | -10/Mines | Entered Materials 604 | -9/Materials | Loaded intel: 11 terminal locations 605 | -9/Materials | Reached level 2 605 | -9/Materials | Upgraded with Utility slot (x1) 629 | -9/Materials | Reached level 3 871 | -9/Materials | Discovered new exit (range 9) 904 | -9/Materials | Reached level 4 904 | -9/Materials | Core integrity fell below 50% 910 | -9/Materials | Discovered new exit (range 15) 912 | -9/Materials | Identified exit to Storage 922 | -9/Materials | Identified exit to Materials 925 | -9/Materials | Entered Storage 974 | -9/Storage | Repaired Flight Unit 1004 | -9/Storage | Reached level 5 1101 | -9/Storage | Assisted by bots powering up and referring to "LRC-V3" 1150 | -9/Storage | Reached level 6 1151 | -9/Storage | Upgraded with Propulsion slot (x1) 1216 | -9/Storage | Lost 7 allies 1278 | -9/Storage | Identified exit to Recycling 1280 | -9/Storage | Discovered exit to Materials (range 15) 1293 | -9/Storage | Reached level 7 1297 | -9/Storage | Upgraded with Utility slot (x1) 1483 | -9/Storage | Entered Recycling 1485 | -9/Recycling | Reached level 8 1486 | -9/Recycling | Upgraded with Utility slot (x1) 1490 | -9/Recycling | Identified exit to Factory 1612 | -9/Recycling | Entered Factory 1614 | -7/Factory | Reached level 9 1616 | -7/Factory | Found Prototype Launcher 1616 | -7/Factory | Identified Rocket Array 1806 | -7/Factory | Allied Derelicts emerged from ambush trap array 1892 | -7/Factory | Discovered new exit (range 6) 1903 | -7/Factory | Identified exit to Factory 1952 | -7/Factory | Reached level 10 2036 | -7/Factory | Identified exit to Lower Caves 2162 | -7/Factory | Fabricated Adv. Sensor Array? 2354 | -7/Factory | Entered Lower Caves 2416 | -7/Lower Caves | Spotted B-75 Beast 2439 | -7/Lower Caves | Reached level 11 2447 | -7/Lower Caves | Upgraded with Utility slot (x1) 2519 | -7/Lower Caves | Attracted the attention of an 0b10 checkpoint 2631 | -7/Lower Caves | Learned location of 1 exit from Factory 2665 | -7/Lower Caves | Discovered new exit (range 13) 2675 | -7/Lower Caves | Identified exit to Lower Caves 2676 | -7/Lower Caves | Entered another Lower Caves area 2678 | -7/Lower Caves | Discovered exit to Factory (range 7) 2687 | -7/Lower Caves | Spotted B-75 Beast 2704 | -7/Lower Caves | Encountered a Warlord checkpoint 2709 | -7/Lower Caves | Build established: Hacker-Scout 2899 | -7/Lower Caves | Discovered new exit (range 5) 2902 | -7/Lower Caves | Identified exit to Zion 2908 | -7/Lower Caves | Entered Zion 2938 | -7/Zion | System corruption cleaned by Quarantine Array 2999 | -7/Zion | Found Prototype Processor 2999 | -7/Zion | Identified Exp. Melee Analysis Suite 3001 | -7/Zion | Found Prototype Processor 3001 | -7/Zion | Identified Exp. Armor Integrity Analyzer 3022 | -7/Zion | Found Prototype Processor 3022 | -7/Zion | Identified Exp. Core Analyzer 3078 | -7/Zion | Found CR-A16's Pointy Stick 3194 | -7/Zion | Discovered new exit (range 15) 3200 | -7/Zion | Entered Proximity Caves 3202 | -6/Proximity Caves | Reached level 12 3203 | -6/Proximity Caves | Upgraded with Weapon slot (x1) 3237 | -6/Proximity Caves | Acquired the password to a Derelict Tinkerer's latest research 3242 | -6/Proximity Caves | Found Prototype Special Weapon 3242 | -6/Proximity Caves | Identified Molecular Deconstructor 3296 | -6/Proximity Caves | Caught by Unaware searching for contraband prototypes 3305 | -6/Proximity Caves | Caught by Unaware searching for contraband prototypes 3309 | -6/Proximity Caves | Core integrity fell below 50% 3369 | -6/Proximity Caves | Reached level 13 3392 | -6/Proximity Caves | Upgraded with Utility slot (x1) 3637 | -6/Proximity Caves | Entered Factory 3638 | -6/Factory | Identified exit to Extension 3639 | -6/Factory | Reached level 14 3687 | -6/Factory | Garrison activated, responded to threat 3944 | -6/Factory | Identified exit to Lower Caves 4139 | -6/Factory | Reached level 15 4142 | -6/Factory | Upgraded with Utility slot (x1) 4143 | -6/Factory | Entered Extension 4159 | -6/Extension | Rescued a captive Derelict 4160 | -6/Extension | Rescued a captive Derelict 4225 | -6/Extension | Rescued A7 4288 | -6/Extension | Reached level 16 4325 | -6/Extension | Rescued a captive Derelict 4325 | -6/Extension | Rescued a captive Derelict 4333 | -6/Extension | Rescued a captive Derelict 4339 | -6/Extension | Spotted B-75 Beast 4342 | -6/Extension | Spotted B-75 Beast 4351 | -6/Extension | Revealed the true nature of CR-A16's Pointy Stick 4355 | -6/Extension | Reached level 17 4359 | -6/Extension | Allies destroyed B-75 Beast 4360 | -6/Extension | Discovered new exit (range 15) 4365 | -6/Extension | Destroyed B-75 Beast 4371 | -6/Extension | Upgraded with Propulsion slot (x1) 4431 | -6/Extension | Rescued a captive Derelict 4432 | -6/Extension | Rescued a captive Derelict 4442 | -6/Extension | Rescued a captive Derelict 4450 | -6/Extension | Reached level 18 4452 | -6/Extension | Rescued a captive Derelict 4454 | -6/Extension | Rescued a captive Derelict 4466 | -6/Extension | Rescued a captive Derelict 4467 | -6/Extension | Rescued a captive Derelict 4493 | -6/Extension | First assault squad dispatched 4597 | -6/Extension | Discovered new exit (range 16) 4598 | -6/Extension | Lost 3 allies 4598 | -6/Extension | Discovered new exit (range 15) 4624 | -6/Extension | Identified exit to Cetus 4625 | -6/Extension | Identified exit to Factory 4691 | -6/Extension | Entered Cetus 4691 | -6/Cetus | Accompanied by 13 allies (A7) 4693 | -6/Cetus | Reached level 19 4696 | -6/Cetus | Acquired a Cetus Manufacturing Module code from A7 4698 | -6/Cetus | Spotted Cetus Guard 4698 | -6/Cetus | Spotted Cetus Guard 4698 | -6/Cetus | Spotted Cetus Guard 4698 | -6/Cetus | Spotted Cetus Guard 4710 | -6/Cetus | Destroyed Cetus Guard 4715 | -6/Cetus | Destroyed Cetus Guard 4717 | -6/Cetus | Allies destroyed Cetus Guard 4724 | -6/Cetus | Allies destroyed Cetus Guard 4759 | -6/Cetus | Discovered new exit (range 15) 4765 | -6/Cetus | Identified exit to Archives 4809 | -6/Cetus | Entered Archives 4809 | -6/Archives | Accompanied by 12 allies (A7) 4822 | -6/Archives | Upgraded with Utility slot (x1) 4831 | -6/Archives | Discovered new exit (range 15) 4834 | -6/Archives | Discovered new exit (range 16) 4840 | -6/Archives | Unable to access archive contents 4845 | -6/Archives | Unable to access archive contents 4852 | -6/Archives | Unable to access archive contents 4852 | -6/Archives | Discovered exit to Factory (range 16) 4875 | -6/Archives | Identified exit to Hub_04(d) 4895 | -6/Archives | Entered Hub_04(d) 4895 | -6/Hub_04(d) | Accompanied by 9 allies 4895 | -6/Hub_04(d) | Discovered exit to Factory (range 10) 4902 | -6/Hub_04(d) | Reached level 20 4963 | -6/Hub_04(d) | Lost 6 allies 4982 | -6/Hub_04(d) | Network Hub disabled 5016 | -6/Hub_04(d) | Spotted Lightning 5037 | -6/Hub_04(d) | Spotted Lightning 5039 | -6/Hub_04(d) | Spotted Lightning 5039 | -6/Hub_04(d) | Spotted Lightning 5058 | -6/Hub_04(d) | Entered Factory 5060 | -5/Factory | Reached level 21 5277 | -5/Factory | Upgraded with Utility slot (x1) 5320 | -5/Factory | Discovered new exit (range 9) 5505 | -5/Factory | Identified exit to Factory 5680 | -5/Factory | Cargo convoy interrupted 5801 | -5/Factory | Reached level 22 6006 | -5/Factory | Identified exit to Upper Caves 6241 | -5/Factory | Fabricated Field Propulsion Array (x1) 6285 | -5/Factory | Entered Upper Caves 6286 | -5/Upper Caves | Learned Factory terminal intel 6334 | -5/Upper Caves | Spotted B-75 Beast 6336 | -5/Upper Caves | Destroyed B-75 Beast 6354 | -5/Upper Caves | Discovered new exit (range 14) 6358 | -5/Upper Caves | Identified exit to Upper Caves 6401 | -5/Upper Caves | Entered another Upper Caves area 6437 | -5/Upper Caves | Encountered a Warlord checkpoint 6526 | -5/Upper Caves | Learned Factory stockpile data 6643 | -5/Upper Caves | Discovered new exit (range 15) 6647 | -5/Upper Caves | Identified exit to Zhirov 6648 | -5/Upper Caves | Entered Zhirov 6648 | -5/Zhirov | Discovered new exit (range 3) 6651 | -5/Zhirov | Identified exit to Proximity Caves 6656 | -5/Zhirov | Met Zhirov 6666 | -5/Zhirov | Zhirov requested help retrieving the SGEMP Prototype 6672 | -5/Zhirov | Found Alien Artifact 6676 | -5/Zhirov | Found Alien Artifact 6676 | -5/Zhirov | Identified Integrated Reactor 6676 | -5/Zhirov | Installed Integrated Reactor, increased core energy generation (+10) 6731 | -5/Zhirov | Learned location of Quarantine (-3) 6731 | -5/Zhirov | Learned location of Testing (-2) 6731 | -5/Zhirov | Learned location of Command (-1) 6742 | -5/Zhirov | Entered Proximity Caves 6744 | -4/Proximity Caves | Reached level 23 6898 | -4/Proximity Caves | Attracted the attention of an 0b10 checkpoint 6910 | -4/Proximity Caves | Learned Research non-interactive machine intel 7055 | -4/Proximity Caves | Reached level 24 7061 | -4/Proximity Caves | Upgraded with Power slot (x1) 7201 | -4/Proximity Caves | Discovered exit to Factory (range 8) 7203 | -4/Proximity Caves | Entered Factory 7205 | -4/Factory | Loaded intel: 25 terminal locations 7218 | -4/Factory | Discovered new exit (range 14) 7221 | -4/Factory | Discovered new exit (range 13) 7222 | -4/Factory | Identified exit to Research 7411 | -4/Factory | Local machine network offline 7411 | -4/Factory | Discovered new exit (range 8) 7429 | -4/Factory | Spotted B-86 Titan 7432 | -4/Factory | Destroyed B-86 Titan 7552 | -4/Factory | Spotted B-86 Titan 7641 | -4/Factory | Reached level 25 7644 | -4/Factory | Upgraded with Propulsion slot (x1) 7672 | -4/Factory | Discovered new exit (range 7) 7703 | -4/Factory | First assault squad dispatched 7813 | -4/Factory | Identified exit to Upper Caves 7814 | -4/Factory | Entered Upper Caves 7815 | -4/Upper Caves | Destroyed 7 combat bots 7863 | -4/Upper Caves | Discovered new exit (range 9) 7865 | -4/Upper Caves | Identified exit to Upper Caves 7869 | -4/Upper Caves | Attacked by a delusional Derelict stockpiling Unaware 7870 | -4/Upper Caves | Entered another Upper Caves area 7882 | -4/Upper Caves | Learned Research garrison access intel 8031 | -4/Upper Caves | Discovered new exit (range 12) 8054 | -4/Upper Caves | Identified exit to Warlord 8060 | -4/Upper Caves | Entered Warlord 8068 | -4/Warlord | System corruption cleaned by Quarantine Array 8162 | -4/Warlord | Visited the Vortex Lab 8165 | -4/Warlord | Found Prototype Piercing Weapon 8165 | -4/Warlord | Identified Vortex Lance 8166 | -4/Warlord | Warlord's base attacked by MAIN.C 8177 | -4/Warlord | Found Prototype Device 8177 | -4/Warlord | Identified Minesniffer Drone Bay 8185 | -4/Warlord | Learned Factory scanalyzer intel 8185 | -4/Warlord | Learned Research repair station intel 8185 | -4/Warlord | Learned Research garrison access intel 8186 | -4/Warlord | Learned Testing trap positions 8200 | -4/Warlord | Build established: Hacker-Ninja 8227 | -4/Warlord | Met Warlord 8243 | -4/Warlord | Found Prototype Device 8243 | -4/Warlord | Identified Exp. Cloaking Device 8281 | -4/Warlord | Opened side exit 8291 | -4/Warlord | Discovered new exit (range 15) 8328 | -4/Warlord | Identified exit to Proximity Caves 8328 | -4/Warlord | Entered Proximity Caves 8330 | -3/Proximity Caves | Reached level 26 8330 | -3/Proximity Caves | Upgraded with Propulsion slot (x1) 8372 | -3/Proximity Caves | Discovered exit to Research (range 4) 8372 | -3/Proximity Caves | Entered Research 8373 | -3/Research | Loaded intel: 61 non-interactive machine locations 8374 | -3/Research | Loaded intel: 4 repair station locations 8374 | -3/Research | Reached level 27 8375 | -3/Research | Loaded intel: 4 garrison access locations 8389 | -3/Research | Garrison activated, responded to threat 8638 | -3/Research | Reached level 28 8700 | -3/Research | Destroyed 9 combat bots 8742 | -3/Research | Found Enh. Force Lance 8744 | -3/Research | Discovered new exit (range 17) 8761 | -3/Research | Identified exit to Quarantine 8765 | -3/Research | Upgraded with Weapon slot (x1) 8769 | -3/Research | Entered Quarantine 8960 | -3/Quarantine | Scanned by Researcher 9010 | -3/Quarantine | Discovered new exit (range 5) 9010 | -3/Quarantine | Identified exit to Research 9066 | -3/Quarantine | Found Alien Slashing Weapon 9066 | -3/Quarantine | Identified Sigix Broadsword 9070 | -3/Quarantine | Reached level 29 9122 | -3/Quarantine | Found Alien Artifact 9123 | -3/Quarantine | Identified Subatomic Replicator 9123 | -3/Quarantine | Used Subatomic Replicator to replicate Sigix Broadsword 9159 | -3/Quarantine | Entered Research 9159 | -2/Research | Warlord forces began assault on 0b10 9160 | -2/Research | Loaded intel: 4 garrison access locations 9161 | -2/Research | Reached level 30 9213 | -2/Research | Identified exit to Testing 9242 | -2/Research | Upgraded with Utility slot (x1) 9242 | -2/Research | Spotted B-90 Cyclops 9269 | -2/Research | Research machine network offline 9332 | -2/Research | Discovered new exit (range 12) 9358 | -2/Research | Identified exit to Access 9372 | -2/Research | Entered Access 9374 | -1/Access | Reached level 31 9385 | -1/Access | Identified exit to Surface 9523 | -1/Access | Reached level 32 9563 | -1/Access | Destroyed 8 combat bots 9664 | -1/Access | First assault squad dispatched 9666 | *** | Escaped! Last Messages --------------- Access door sealed. 09628_ H-88 Terminator destroyed. 09631_ Slug penetrates Garrison Access. 09631_ Penetrated by Slug. 09632_ Sigix Broadsword follow-up attack on H-88 Terminator. 09632_ H-88 Terminator destroyed. 09635_ System corrupted: Substantial component data lost. 09641_ ALERT: Hostile activity reported, dispatching reinforcements to area. 09655_ Connecting with Terminal... >>Open(Door) Sealed Barrier opened. 09656_ The Access Shell folds into the floor. 09659_ Destroyed Antigrav System. 09659_ W-44 Eye destroyed. 09664_ ALERT: Significant disruption in Zone 4P, multiple assault carriers dispatched. [Achievement: 30k Club] [Achievement: Tester] [Achievement: Epsilon Run] Map ----- +----------------------------------------------------+ | ?##??##?#?#?# #?# # #??### ### | | ??#??##?#???# ### + ######+### | | ??##??????### #?# # # ] | | ?#??#????#??# #?# # # | | ?##?#???????# ### # # " | | ?????##?????# #?# # # """" | | #?#???##????# ### """"T"""" # # """"" | | ??#???#?##### #?#? """"""""""" = # # """" | | ?#????##????# #?####?############# + """" | | ???##??#?##?# #################### # " | | ##########??# n + # # | | ####+##+########### # # | | # ##?## " # # | | # =[ [ #####""" # # | | # [%%% ###?# """ [ # #"######## | | " = % ##### " + ## | | ! # "" "" #???# = # ## | | # ""G"" ##?## #n #" | | #############################n ## | | #???##?#??###?###??##########n ## | | ##?#?#####?########## ####### ## | | #??? ? """" ## ! | | # ? BB ??"" ! #####+#### | | ######+###? ?BB ???" %! ### ## | | ? ??? ?? ?????" = ### | | ?? ? ? ????? ? ?"?"" "@ ### | | ???? ? ???? ??""" "" ### | | ????? ? ? ? ?? ??"" #?# | | ?????#??#??? ?BB ""?" #?# | | ? ????? ??? ?BB ???" """ """ #?# | | ?????"?? #? ? "?"" """T""" #?# | | ???""?? ??#??###??#?########## ####### #?# | | ?? ??????#???###?#???###?#??####?####? #?# | | ???????? ???#??#??????##?##??????##??# ### | | ???????????????#???#?#??#????#???#?### ### | | ?????????#???????#??#??#??###?##??##?# ### | | ?????????????#????#??#?????? ??"?? # ### | | ????????????#??#????#?????#???"??"" # | | ??????????????#??????#????#???"" F"??# | | ???????????????????????#?????????? ? # | | ????????????????#????#??????? ??? ? ?# | | ?????????????????????#???????? ?? # | | ????????????????????????##??? ??? ?# | | ???????????????????????????#? ? ????# | | ????????????????????????#????##????#?# | | ????????????????????????????????????? | | ??????????????????????????????????? | | ???????????????????????????????????### ###### | | ?????????????????????????????????????#/?## "" | | ????????????????????????????????? ??? ?#?""" | +----------------------------------------------------+ Best States ------------- Heat Dissipation 73 Energy Generation 68 Energy Capacity 400 Matter Stores 300 Matter Capacity 300 Sight Range 17 Robot Scan Range 16 Terrain Scan Range 20 Terrain Scan Density 210 Cloak Strength 4 Armor Coverage 225 Resistance: KI 20 Resistance: TH 25 Propulsion Shielding 33 Melee Speed Boost 30 Evasion (%) 76 Melee Accuracy 12 Target Analysis 8 Force Boost 30 Offensive Hacking 20 Defensive Hacking 15 Item Schematics ----------------- Reflective Plating | -9/Storage | Hacked Adv. Sensor Array | -7/Factory | Hacked Nuclear Pulse Thruster | -6/Factory | Hacked Mic. Fission Core | -6/Factory | Hacked Assault Drone Bay | -5/Zhirov | Free Exp. Heat Sink | -5/Zhirov | Free Exp. Optical Array | -5/Zhirov | Free Imp. Arc Thrower | -5/Zhirov | Free Molecular Scythe | -3/Quarantine | Archive Adv. Dynamic Insulation System | -3/Quarantine | Archive Cld. Gravmag System | -3/Quarantine | Archive Centrium Heavy Armor Plating | -3/Quarantine | Archive Exp. Matter Compressor | -3/Quarantine | Archive Hvy. Neutron Cannon | -3/Quarantine | Archive Robot Schematics ------------------ R-06 Scavenger | -3/Quarantine | Archive Fabricated ------------ Adv. Sensor Array | x1 | -7/Factory Field Propulsion Array | x1 | -5/Factory | Preloaded Alien Tech Used ----------------- Integrated Reactor Sigix Broadsword Subatomic Replicator Achievements -------------- 30k Club Ambidextrous Assassin Deadly Force Dodgeball, But With Guns Epsilon Run Knowing Is Half The Battle Melee Specialist Ooh, Shiny! Tester Challenges ------------ None RPGLIKE | -11 -10 -10 -9 -9 -9 -7 -7 -7 -7 -6 -6 -6 -6 -6 -6 -5 -5 -5 -5 -4 -4 -4 -4 -4 -3 -3 -3 -2 -1 --------- Run | Yrd Mat Min Mat Sto Rec Fac Low Low Zio Pro Fac Ext Cet Arc Hub Fac Upp Upp Zhi Pro Fac Upp Upp War Pro Res Qua Res Acc Levels Raised 31 | . . . 3 3 1 2 1 . . 2 2 3 1 . 1 2 . . . 2 1 . . . 1 2 1 1 2 XP Earned 50331 | 3000 395 1100 3120 5490 1505 2673 1150 500 500 2300 2320 5883 587 499 1082 2818 220 319 220 1877 1907 253 286 396 1069 2534 1115 1647 3566 XP Spent 49375 | 2900 . . 4500 4600 1400 2385 2190 . . 2800 2300 1875 . 2600 . 5725 . . . 3200 2150 . . . 1850 2560 . 3200 3140 Upgrades 79 | 8 . . 17 6 1 7 4 . . 2 1 3 . 1 . 10 . . . 6 2 . . . 2 4 . 1 4 Power Slot 1 | . . . . . . . . . . . . . . . . . . . . 1 . . . . . . . . . Propulsion Slot 5 | 1 . . . 1 . . . . . . . 1 . . . . . . . . 1 . . . 1 . . . . Utility Slot 10 | 1 . . 1 1 1 . 1 . . 1 1 . . 1 . 1 . . . . . . . . . . . 1 . Weapon Slot 3 | 1 . . . . . . . . . 1 . . . . . . . . . . . . . . . 1 . . . Core Integrity 11 | . . . 6 . . 3 . . . . . . . . . . . . . . . . . . . . . . 2 Heat Dissipation 8 | . . . . . . . . . . . . . . . . 5 . . . . . . . . 1 2 . . . Energy Generation 5 | . . . . . . 1 . . . . . 1 . . . 2 . . . . . . . . . . . . 1 Energy Storage 4 | . . . . . . 1 . . . . . 1 . . . 2 . . . . . . . . . . . . . Mass Support 4 | 1 . . 1 . . . . . . . . . . . . . . . . . . . . . . 1 . . 1 Inventory Capacity 3 | . . . 2 . . . . . . . . . . . . . . . . . 1 . . . . . . . . Sight Range 1 | . . . . . . . . . . . . . . . . . . . . 1 . . . . . . . . . Terrain Scan Density 2 | . . . . . . . 2 . . . . . . . . . . . . . . . . . . . . . . Melee Accuracy 7 | . . . 4 2 . 1 . . . . . . . . . . . . . . . . . . . . . . . Hack Attack % 4 | 2 . . . 1 . 1 . . . . . . . . . . . . . . . . . . . . . . . Hack Defense % 3 | 2 . . . 1 . . . . . . . . . . . . . . . . . . . . . . . . . KI Resistance % 4 | . . . 1 . . . 1 . . . . . . . . . . . . 2 . . . . . . . . . TH Resistance % 4 | . . . 2 . . . . . . . . . . . . . . . . 2 . . . . . . . . . Protomatter Created 3290 | . 45 82 103 105 49 . 45 . . 197 173 475 61 73 36 474 86 97 87 170 324 . 62 . 74 183 106 64 119 Integrity Restored 6689 | . 71 235 . 725 140 . 135 . . 471 342 1427 . 48 . 912 258 291 247 113 635 . 186 . 84 117 24 . 228 Core 5352 | . 56 204 . 655 100 . 135 . . 471 342 772 . 48 . 912 258 291 15 67 436 . 186 . 35 117 24 . 228 Parts 1337 | . 15 31 . 70 40 . . . . . . 655 . . . . . . 232 46 199 . . . 49 . . . . Protomatter Decayed 1986 | . 20 . . 108 . 53 . . . 40 . 234 . 73 129 156 . . . 247 87 . . 137 43 79 98 350 132 Game ------ Seed MetaCoreDoomcannon Manual? 0 Play Time 03:57:51 Cumulative 112.6 hours Start 2024.06.17 @ 12:08:11 End 2024.06.17 @ 17:43:04 Sessions 1 Manual Loads 0 Difficulty Rogue Special Mode Winter2019/RPGLIKE Game No. 124 Rogue 124 Adventurer 0 Explorer 0 Win Type 0 Total 1 Types 1/0/0/0/0/0/0/0/0 Lore% 50 Gallery% 50 Achievement% 42 Wizard Run 0 Options --------- Layout 0 ASCII 0 Keyboard 0 Movement Numpad Keybinds 0 Fullscreen 1 Font 18/SmallcapsGlow Map View 76x50 Zoom Use 0% Tactical HUD 1 Map Filters NONE Filters NONE Steam 1 RUN: 14373e3c-d345-4902-8e45-ac2226704a63